bitfinex/quotes_SOLUSD_20241022
["timestamp","ask_amount","ask_price","bid_price","bid_amount"]
[1729601218348,6.4946,166.4,166.28,20.0]
[1729601218671,6.4946,166.45,166.31,20.0]
[1729601218852,6.009,166.42,166.31,20.0]
[1729601219053,6.009,166.42,166.27,104.07463521]
[1729601219262,6.009,166.42,166.28,20.0]
[1729601220473,6.4946,166.45,166.28,20.0]
[1729601220774,20.0,166.42,166.27,6.0832]
[1729601220949,20.0,166.38,166.27,6.0832]
[1729601221150,23.776884,166.37,166.27,6.0832]
[1729601221754,23.776884,166.35,166.27,6.0832]
[1729601221955,23.776884,166.35,166.23,6.4266]
[1729601222165,23.776884,166.33,166.23,6.4266]
[1729601222963,6.0125,166.32,166.23,6.4266]
[1729601223172,23.776884,166.33,166.23,6.4266]
[1729601223886,23.776884,166.34,166.23,6.4266]
[1729601225250,23.776884,166.35,166.23,6.4266]
[1729601225977,29.788284,166.35,166.23,6.4266]
[1729601226971,23.776884,166.33,166.23,6.4266]
[1729601227176,6.0131,166.31,166.23,6.4266]
[1729601227376,23.776884,166.3,166.18,76.536654]
[1729601227674,23.776884,166.3,166.18,6.536654]
[1729601227878,29.790184,166.3,166.18,6.536654]
[1729601228278,29.790184,166.3,166.18,76.536654]
[1729601228478,8.22106414,166.43,166.26,97.99143521]
[1729601228683,6.0097,166.4,166.26,97.99143521]
[1729601228865,6.0097,166.4,166.26,107.18883395]
[1729601229066,6.0097,166.4,166.27,6.6148]
[1729601229362,6.389,166.43,166.27,6.6148]
[1729601229563,6.0107,166.37,166.27,6.6148]
[1729601229777,23.776884,166.36,166.27,6.6148]
[1729601230665,29.787984,166.36,166.23,34.09733521]
[1729601231672,23.776884,166.37,166.24,70.0]
[1729601231874,20.0,166.4,166.26,114.47943521]
[1729601232272,20.0,166.4,166.24,9.19739874]
[1729601232578,6.389,166.43,166.19,8.35898863]
[1729601232579,6.0132,166.3,166.19,6.5029]
[1729601232975,6.0138,166.29,166.19,6.5029]
[1729601233363,23.776884,166.28,166.19,6.5029]
[1729601234790,6.015,166.25,166.18,0.074954]
[1729601235284,23.776884,166.24,166.18,0.074954]
[1729601235462,6.0161,166.22,166.18,0.074954]
[1729601235669,23.776884,166.24,166.18,0.074954]
[1729601235670,29.792284,166.24,166.18,0.074954]
[1729601236361,23.776884,166.22,166.18,0.074954]
[1729601236572,29.793284,166.22,166.18,0.074954]
[1729601237277,23.776884,166.23,166.18,0.074954]
[1729601238274,23.776884,166.24,166.18,0.074954]
[1729601239273,6.0172,166.19,166.18,0.074954]
[1729601239488,26.0159,166.23,166.18,0.074954]
[1729601239692,23.776884,166.22,166.18,0.074954]
[1729601241585,23.776884,166.23,166.18,0.074954]
[1729601241888,29.794084,166.19,166.18,0.074954]
[1729601242095,71.418084,166.19,166.18,0.074954]
[1729601242270,71.418084,166.19,166.02,0.608429]
[1729601242271,83.570884,166.19,166.02,7.040929]
[1729601242470,20.0,166.13,166.02,7.040929]
[1729601242687,23.776884,166.12,166.02,7.040929]
[1729601242894,6.0207,166.1,166.02,7.040929]
[1729601243083,23.776884,166.09,166.02,7.040929]
[1729601244097,23.776884,166.1,166.02,7.040929]
[1729601245186,6.0202,166.11,166.02,7.040929]
[1729601245391,23.776884,166.1,166.02,7.040929]
[1729601245873,23.776884,166.08,166.02,0.608429]
[1729601246074,29.798084,166.08,166.02,0.608429]
[1729601246274,23.776884,166.08,166.02,0.608429]
[1729601246482,29.797684,166.09,166.02,0.608429]
[1729601247679,6.0211,166.08,166.02,0.608429]
[1729601247881,23.776884,166.07,166.02,0.608429]
[1729601249793,23.776884,166.08,166.02,0.608429]
[1729601250293,6.0186,166.15,166.02,0.608429]
[1729601250490,6.0194,166.13,166.02,0.608429]
[1729601250693,6.0179,166.17,166.02,0.608429]
[1729601250898,6.0175,166.18,166.02,0.608429]
[1729601251102,6.018,166.17,166.02,0.608429]
[1729601251813,6.0183,166.16,166.02,0.608429]
[1729601252098,23.776884,166.14,166.02,0.608429]
[1729601252900,21.624,166.19,166.03,70.0]
[1729601253201,6.0177,166.18,166.03,70.0]
[1729601254309,23.776884,166.16,166.03,70.0]
[1729601255107,22.9136,166.24,166.07,70.0]
[1729601255314,6.016,166.23,166.07,70.0]
[1729601255481,22.9136,166.24,166.07,70.0]
[1729601255807,6.0147,166.26,166.11,70.0]
[1729601256483,6.0145,166.27,166.11,70.0]
[1729601257208,22.9136,166.29,166.15,6.6144]
[1729601257392,22.9136,166.29,166.15,51.83339414]
[1729601258299,22.9136,166.29,166.15,6.6144]
[1729601258612,23.776884,166.28,166.15,6.6144]
[1729601259495,6.3191,166.33,166.16,70.0]
[1729601259699,6.3191,166.33,166.19,70.0]
[1729601261133,20.0,166.32,166.19,70.0]
[1729601261411,43.776884,166.32,166.19,70.0]
[1729601262010,12.3298,166.37,166.21,70.0]
[1729601262193,6.3191,166.37,166.24,6.6144]
[1729601262396,6.3191,166.37,166.24,23.0168]
[1729601262892,16.5945,166.39,166.25,70.0]
[1729601263915,6.4304,166.41,166.26,27.81302564]
[1729601264113,6.4304,166.41,166.27,70.0]
[1729601264315,6.0085,166.43,166.27,70.0]
[1729601264699,6.0089,166.42,166.27,70.0]
[1729601264902,22.3031,166.45,166.29,27.81302564]
[1729601265222,6.0085,166.43,166.29,27.81302564]
[1729601265417,6.0082,166.44,166.29,97.81302564]
[1729601265624,6.0085,166.43,166.29,97.81302564]
[1729601265796,20.0,166.42,166.29,27.81302564]
[1729601265998,20.0,166.44,166.25,70.0]
[1729601266210,6.0099,166.4,166.25,70.0]
[1729601266400,6.0102,166.39,166.25,70.0]
[1729601266728,23.776884,166.38,166.25,70.0]
[1729601272126,23.776884,166.39,166.25,70.0]
[1729601272426,23.776884,166.37,166.25,70.0]
[1729601272597,23.776884,166.37,166.24,23.0168]
[1729601272598,6.0112,166.36,166.24,23.0168]
[1729601272803,23.776884,166.35,166.24,23.0168]
[1729601274420,23.776884,166.36,166.24,23.0168]
[1729601275423,29.787584,166.37,166.24,23.0168]
[1729601277022,23.776884,166.37,166.25,70.0]
[1729601277225,22.3031,166.45,166.28,23.776884]
[1729601277430,6.0086,166.43,166.29,70.0]
[1729601278427,6.0084,166.44,166.29,70.0]
[1729601278721,6.0081,166.44,166.29,70.0]
[1729601279028,22.3031,166.45,166.29,70.0]
[1729601279029,6.0085,166.43,166.29,70.0]
[1729601279524,6.0084,166.44,166.29,70.0]
[1729601280222,28.311,166.45,166.29,97.81302564]
[1729601280403,20.0,166.44,166.29,97.81302564]
[1729601280723,20.0,166.44,166.31,6.1325]
[1729601281025,26.0083,166.44,166.31,6.1325]
[1729601281721,6.0098,166.4,166.31,6.1325]
[1729601282016,20.0,166.41,166.27,6.6591]
[1729601282228,23.776884,166.35,166.27,6.6591]
[1729601282801,23.776884,166.33,166.24,16.4024]
[1729601283002,6.0132,166.3,166.23,6.6591]
[1729601283309,23.776884,166.3,166.2,16.6104]
[1729601284012,22.7453,166.35,166.21,70.0]
[1729601284212,23.776884,166.33,166.21,70.0]
[1729601284408,22.7453,166.35,166.23,70.0]
[1729601284611,20.0,166.36,166.23,70.0]
[1729601284917,20.0,166.38,166.2,86.6104]
[1729601285121,6.0122,166.33,166.2,86.6104]
[1729601285431,6.0122,166.33,166.2,16.6104]
[1729601285610,43.776884,166.33,166.21,70.0]
[1729601285925,22.7453,166.39,166.21,70.0]
[1729601285926,26.0104,166.38,166.23,70.0]
[1729601286222,22.7453,166.39,166.27,6.557]
[1729601286424,28.7555,166.39,166.27,6.557]
[1729601286719,6.0106,166.38,166.27,6.557]
[1729601286930,22.7453,166.39,166.27,6.557]
[1729601287232,23.776884,166.38,166.27,6.557]
[1729601288215,6.009,166.42,166.28,70.0]
[1729601288423,22.4106,166.43,166.3,70.0]
[1729601288603,6.0074,166.46,166.3,97.81302564]
[1729601288927,23.0342,166.47,166.3,97.81302564]
[1729601288928,6.008,166.45,166.3,97.81302564]
[1729601289537,23.0342,166.47,166.33,70.0]
[1729601289709,20.0,166.46,166.33,70.0]
[1729601290110,20.0,166.46,166.33,97.81302564]
[1729601290310,23.0342,166.47,166.33,97.81302564]
[1729601290523,23.0342,166.47,166.34,6.0242]
[1729601290833,23.0342,166.52,166.38,70.0]
[1729601291006,6.0058,166.51,166.39,16.0464]
[1729601291326,6.0053,166.52,166.39,16.0464]
[1729601292027,23.776884,166.51,166.39,16.0464]
[1729601292324,6.0053,166.52,166.39,86.0464]
[1729601292863,6.0056,166.51,166.39,16.0464]
[1729601293132,6.0069,166.48,166.35,70.0]
[1729601293306,0.1,166.53,166.34,21.0955]
[1729601293518,43.776884,166.46,166.34,21.0955]
[1729601293829,23.776884,166.43,166.34,21.0955]
[1729601294451,23.776884,166.41,166.29,21.7211]
[1729601294605,29.786384,166.41,166.29,21.7211]
[1729601295228,23.776884,166.41,166.29,91.7211]
[1729601295934,43.776884,166.44,166.32,70.0]
[1729601297923,23.776884,166.45,166.32,70.0]
[1729601298547,15.4214,166.52,166.37,76.0474]
[1729601298723,21.4268,166.52,166.38,39.905984]
[1729601299440,15.4214,166.52,166.39,70.0]
[1729601299831,6.0051,166.53,166.39,70.0]
[1729601300727,6.5646,166.55,166.41,70.0]
[1729601300935,23.776884,166.53,166.41,70.0]
[1729601301553,6.0046,166.54,166.41,70.0]
[1729601302256,6.0042,166.55,166.41,70.0]
[1729601302455,20.0,166.54,166.41,70.0]
[1729601302837,20.0,166.54,166.43,70.0]
[1729601303151,6.610829,166.6,166.46,6.4181]
[1729601303463,0.608429,166.6,166.49,15.5969]
[1729601304961,0.608429,166.6,166.5,70.0]
[1729601305861,0.608429,166.6,166.49,15.5969]
[1729601306049,6.003,166.59,166.49,15.5969]
[1729601306256,23.776884,166.58,166.49,15.5969]
[1729601306642,23.776884,166.56,166.46,6.4181]
[1729601306842,23.776884,166.54,166.46,6.4181]
[1729601307645,0.608429,166.6,166.47,70.0]
[1729601307842,0.608429,166.6,166.49,70.0]
[1729601308040,0.608429,166.6,166.47,70.0]
[1729601308041,6.611029,166.6,166.47,70.0]
[1729601308244,0.608429,166.6,166.46,34.23112564]
[1729601308469,6.610829,166.6,166.47,70.0]
[1729601309363,20.0,166.59,166.46,34.23112564]
[1729601309749,20.0,166.59,166.47,70.0]
[1729601310149,20.0,166.59,166.46,34.23112564]
[1729601310562,29.780084,166.58,166.46,6.4181]
[1729601310750,6.0043,166.55,166.46,6.4181]
[1729601311062,23.776884,166.54,166.46,6.4181]
[1729601311769,23.776884,166.57,166.46,6.4181]
[1729601312875,0.608429,166.6,166.47,70.0]
[1729601313442,0.608429,166.6,166.46,34.23112564]
[1729601313664,0.608429,166.6,166.46,6.4181]
[1729601313866,6.003,166.59,166.46,6.4181]
[1729601314072,43.776884,166.58,166.46,6.4181]
[1729601314668,20.608429,166.6,166.47,70.0]
[1729601314871,26.610929,166.6,166.47,70.0]
[1729601315048,6.610929,166.6,166.47,70.0]
[1729601315762,23.776884,166.59,166.47,70.0]
[1729601317268,23.776884,166.57,166.46,6.4181]
[1729601317574,6.0039,166.56,166.46,6.4181]
[1729601317768,29.780384,166.57,166.46,6.4181]
[1729601318153,23.776884,166.57,166.46,6.4181]
[1729601319159,0.608429,166.6,166.47,70.0]
[1729601319350,6.611029,166.6,166.47,70.0]
[1729601319873,20.0,166.59,166.47,70.0]
[1729601320071,0.608429,166.6,166.53,70.0]
[1729601320383,0.608429,166.6,166.53,15.2992]
[1729601320769,6.611129,166.6,166.48,16.3332]
[1729601321476,0.608429,166.6,166.48,44.14622564]
[1729601321659,0.608429,166.6,166.48,16.3332]
[1729601322453,23.776884,166.59,166.48,16.3332]
[1729601322670,0.608429,166.6,166.51,70.0]
[1729601323377,0.608429,166.6,166.51,97.81302564]
[1729601323554,0.608429,166.6,166.51,70.0]
[1729601324165,0.608429,166.6,166.48,44.14622564]
[1729601324360,0.608429,166.6,166.5,70.0]
[1729601326378,23.776884,166.56,166.46,6.4181]
[1729601326763,23.776884,166.53,166.44,16.0998]
[1729601327463,23.776884,166.54,166.44,16.0998]
[1729601328076,23.776884,166.56,166.44,16.0998]
[1729601331690,6.2955,166.59,166.46,70.0]
[1729601332271,20.608429,166.6,166.46,70.0]
[1729601333191,23.776884,166.59,166.46,70.0]
[1729601333791,6.0036,166.57,166.44,16.0998]
[1729601333987,29.780784,166.56,166.44,16.0998]
[1729601334185,23.776884,166.54,166.44,16.0998]
[1729601334573,23.776884,166.55,166.44,16.0998]
[1729601335570,23.776884,166.56,166.44,16.0998]
[1729601337569,0.608429,166.6,166.49,70.0]
[1729601337867,0.608429,166.6,166.46,27.81302564]
[1729601338079,6.610829,166.6,166.45,100.401284]
[1729601338990,23.776884,166.59,166.45,100.401284]
[1729601339290,0.608429,166.6,166.5,70.0]
[1729601339975,0.608429,166.6,166.52,70.0]
[1729601340174,0.608429,166.6,166.53,16.2693]
[1729601341880,0.608429,166.6,166.53,86.2693]
[1729601342083,0.608429,166.6,166.54,6.0386]
[1729601343269,0.608429,166.6,166.56,70.0]
[1729601344509,0.608429,166.6,166.58,70.0]
[1729601344992,0.608429,166.6,166.55,27.81302564]
[1729601345299,0.608429,166.6,166.59,43.776884]
[1729601345870,0.608429,166.76,166.65,70.0]
[1729601346071,0.608429,166.76,166.67,70.0]
[1729601346465,0.608429,166.76,166.65,97.81302564]
[1729601347593,0.608429,166.76,166.62,27.81302564]
[1729601347769,5.997,166.75,166.59,21.5453]
[1729601348172,23.776884,166.75,166.62,70.0]
[1729601348467,0.608429,166.76,166.65,70.0]
[1729601348694,0.608429,166.76,166.62,70.0]
[1729601349292,5.9974,166.74,166.6,70.0]
[1729601349483,5.997,166.75,166.6,70.0]
[1729601349793,23.776884,166.74,166.6,70.0]
[1729601350204,23.776884,166.75,166.6,70.0]
[1729601350377,23.776884,166.73,166.59,21.5453]
[1729601351086,46.609384,166.71,166.55,34.00342564]
[1729601351291,23.776884,166.69,166.55,34.00342564]
[1729601352183,23.776884,166.7,166.58,97.81302564]
[1729601352565,22.6473,166.75,166.59,70.0]
[1729601352916,22.6473,166.75,166.61,70.0]
[1729601353110,0.608429,166.76,166.64,6.0377]
[1729601353390,0.608429,166.76,166.64,33.85072564]
[1729601353585,0.608429,166.76,166.64,6.0377]
[1729601354088,0.608429,166.76,166.66,70.0]
[1729601354391,0.608429,166.76,166.64,76.0377]
[1729601354595,0.608429,166.76,166.66,70.0]
[1729601354792,0.608429,166.76,166.68,97.81302564]
[1729601355376,0.608429,166.76,166.7,70.0]
[1729601355808,14.9752,166.95,166.74,97.81302564]
[1729601356098,5.9905,166.94,166.77,97.81302564]
[1729601356300,6.7106,166.96,166.77,27.81302564]
[1729601356478,5.9912,166.91,166.75,70.0]
[1729601356882,5.9903,166.94,166.77,97.81302564]
[1729601357597,6.599529,166.92,166.77,27.81302564]
[1729601357795,5.9913,166.91,166.77,27.81302564]
[1729601358098,6.599329,166.92,166.78,70.0]
[1729601358305,0.608429,166.92,166.78,70.0]
[1729601359803,0.608429,166.92,166.77,27.81302564]
[1729601360006,23.776884,166.9,166.77,27.81302564]
[1729601360506,29.768684,166.9,166.75,70.0]
[1729601361082,23.776884,166.9,166.75,70.0]
[1729601361286,23.776884,166.88,166.74,27.81302564]
[1729601361681,5.9922,166.89,166.74,97.81302564]
[1729601361984,20.0,166.88,166.74,97.81302564]
[1729601362404,5.992,166.89,166.74,97.81302564]
[1729601363010,23.776884,166.88,166.74,97.81302564]
[1729601363302,5.9915,166.91,166.76,70.0]
[1729601363506,0.608429,166.92,166.76,70.0]
[1729601363707,20.608429,166.92,166.76,70.0]
[1729601364204,5.9916,166.9,166.76,70.0]
[1729601364410,0.608429,166.92,166.76,70.0]
[1729601364608,5.9912,166.91,166.76,70.0]
[1729601364806,5.9917,166.9,166.76,70.0]
[1729601365310,0.608429,166.92,166.83,70.0]
[1729601365482,0.608429,166.92,166.83,15.3924]
[1729601366115,0.608429,166.92,166.83,85.3924]
[1729601366482,0.608429,166.92,166.84,27.81302564]
[1729601367495,0.608429,166.92,166.83,15.3924]
[1729601368100,5.9912,166.91,166.78,15.7604]
[1729601368314,5.9916,166.9,166.78,15.7604]
[1729601368717,23.776884,166.89,166.78,15.7604]
[1729601368886,29.768784,166.89,166.78,15.7604]
[1729601369092,23.776884,166.89,166.78,15.7604]
[1729601369414,0.608429,166.92,166.83,70.0]
[1729601369589,0.608429,166.92,166.85,27.81302564]
[1729601370203,0.608429,166.92,166.86,70.0]
[1729601371205,0.608429,166.92,166.9,70.0]
[1729601371407,0.608429,166.92,166.91,27.81302564]
[1729601371712,0.608429,166.92,166.91,16.6003]
[1729601372017,0.608429,166.92,166.88,27.81302564]
[1729601372190,0.608429,166.92,166.87,6.5926]
[1729601373290,0.608429,166.92,166.83,6.0603]
[1729601375693,23.776884,166.91,166.8,16.1215]
[1729601375999,5.9918,166.9,166.8,16.1215]
[1729601376203,29.768184,166.91,166.8,16.1215]
[1729601376497,23.776884,166.91,166.8,16.1215]
[1729601376703,29.768084,166.91,166.8,16.1215]
[1729601377298,0.608429,166.92,166.8,86.1215]
[1729601380304,6.599429,166.92,166.8,86.1215]
[1729601380720,29.768184,166.91,166.8,16.1215]
[1729601380927,23.776884,166.91,166.8,16.1215]
[1729601381294,23.776884,166.88,166.79,6.2292]
[1729601381494,23.776884,166.89,166.75,16.3494]
[1729601381707,5.993,166.86,166.75,16.3494]
[1729601381897,15.9951,166.89,166.75,16.3494]
[1729601382113,23.776884,166.85,166.75,16.3494]
[1729601382692,5.9915,166.91,166.77,70.0]
[1729601383313,0.608429,166.92,166.76,8.08511363]
[1729601383518,0.608429,166.92,166.75,86.3494]
[1729601383718,5.9924,166.88,166.75,86.3494]
[1729601384219,23.776884,166.87,166.75,86.3494]
[1729601384517,23.776884,166.87,166.75,16.3494]
[1729601384725,5.9937,166.84,166.75,16.3494]
[1729601384916,5.9937,166.84,166.74,6.4522]
[1729601385215,23.776884,166.83,166.74,6.4522]
[1729601386201,5.994,166.84,166.7,18.16220402]
[1729601386202,23.776884,166.81,166.7,22.9498]
[1729601387027,28.7272,166.85,166.7,92.9498]
[1729601387322,29.770784,166.84,166.7,92.9498]
[1729601387930,23.776884,166.84,166.7,92.9498]
[1729601388236,29.770684,166.84,166.7,92.9498]
[1729601389309,5.9943,166.83,166.7,92.9498]
[1729601389630,23.776884,166.84,166.7,92.9498]
[1729601389829,23.776884,166.84,166.73,70.0]
[1729601390131,29.769384,166.88,166.73,70.0]
[1729601390326,29.769384,166.88,166.74,20.0]
[1729601390511,0.608429,166.92,166.78,134.83060649]
[1729601390717,6.599229,166.92,166.78,134.83060649]
[1729601391710,23.776884,166.91,166.78,134.83060649]
[1729601391924,0.608429,166.92,166.78,134.83060649]
[1729601392308,20.608429,166.92,166.78,64.83060649]
[1729601392502,20.608429,166.92,166.78,20.0]
[1729601392719,20.608429,166.92,166.77,6.2445]
[1729601392720,5.9931,166.86,166.77,6.2445]
[1729601392929,5.9932,166.86,166.77,6.2445]
[1729601393108,23.776884,166.87,166.77,6.2445]
[1729601393807,23.776884,166.89,166.77,6.2445]
[1729601394428,23.776884,166.89,166.78,20.0]
[1729601395904,0.608429,166.92,166.8,20.0]
[1729601396305,0.608429,166.92,166.77,6.2445]
[1729601396306,5.9922,166.89,166.78,20.0]
[1729601397105,5.9913,166.91,166.78,20.0]
[1729601397317,5.9912,166.91,166.78,20.0]
[1729601398219,0.608429,166.92,166.79,70.0]
[1729601398423,5.9916,166.9,166.8,20.0]
[1729601398819,5.992,166.89,166.77,33.85720754]
[1729601399137,5.992,166.89,166.78,20.0]
[1729601399822,23.776884,166.88,166.78,20.0]
[1729601400333,0.608429,166.92,166.78,20.0]
[1729601400635,29.768584,166.9,166.78,20.0]
[1729601400835,5.9929,166.87,166.77,6.2445]
[1729601401536,5.993,166.86,166.77,6.2445]
[1729601401767,5.9946,166.82,166.73,22.8607]
[1729601401962,23.776884,166.83,166.73,22.8607]
[1729601402143,23.776884,166.86,166.73,92.8607]
[1729601402338,29.769884,166.86,166.73,92.8607]
[1729601403361,23.776884,166.86,166.73,92.8607]
[1729601403637,15.1979,166.9,166.77,97.61270754]
[1729601403866,15.1979,166.9,166.78,20.0]
[1729601404569,21.1895,166.9,166.78,20.0]
[1729601404769,23.776884,166.89,166.78,20.0]
[1729601405141,5.9923,166.88,166.78,20.0]
[1729601405351,5.9923,166.88,166.73,22.8607]
[1729601405352,23.776884,166.89,166.73,22.8607]
[1729601405570,5.9937,166.85,166.73,22.8607]
[1729601405771,29.770884,166.84,166.73,22.8607]
[1729601406282,20.0,166.88,166.75,70.0]
[1729601406491,23.776884,166.87,166.75,70.0]
[1729601406773,23.776884,166.87,166.76,20.0]
[1729601407972,15.1979,166.9,166.76,20.0]
[1729601408179,15.1979,166.9,166.78,20.0]
[1729601408376,5.9923,166.88,166.76,20.0]
[1729601408760,15.1979,166.9,166.76,20.0]
[1729601409079,5.993,166.87,166.74,20.0]
[1729601409262,23.776884,166.86,166.74,20.0]
[1729601409461,29.770184,166.86,166.74,20.0]
[1729601409671,23.776884,166.86,166.73,22.8607]
[1729601409881,5.9951,166.81,166.69,82.70594535]
[1729601410171,5.9953,166.8,166.69,6.4472]
[1729601410379,23.776884,166.82,166.69,6.4472]
[1729601410576,15.6266,166.81,166.69,6.4472]
[1729601410773,5.9965,166.77,166.68,15.3955]
[1729601410961,5.9966,166.76,166.65,76.4681]
[1729601411454,43.776884,166.8,166.65,76.4681]
[1729601411874,23.776884,166.77,166.65,76.4681]
[1729601412377,23.776884,166.77,166.66,20.0]
[1729601414279,23.776884,166.78,166.66,20.0]
[1729601414483,23.776884,166.77,166.66,20.0]
[1729601415476,5.9973,166.75,166.65,6.4681]
[1729601415654,23.776884,166.74,166.65,6.4681]
[1729601416882,29.774184,166.74,166.65,6.4681]
[1729601417378,5.9977,166.73,166.65,6.4681]
[1729601417580,5.9977,166.73,166.63,15.0866]
[1729601417780,23.776884,166.74,166.63,15.0866]
[1729601417781,29.774984,166.72,166.63,15.0866]
[1729601418081,23.776884,166.71,166.61,6.1917]
[1729601418378,23.776884,166.73,166.61,6.1917]
[1729601418780,5.9977,166.73,166.61,6.1917]
[1729601418976,23.776884,166.74,166.61,76.1917]
[1729601419279,23.776884,166.74,166.62,20.0]
[1729601419581,29.774284,166.74,166.62,20.0]
[1729601425487,23.776884,166.74,166.62,20.0]
[1729601427995,6.0183,166.79,166.63,93.776884]
[1729601428171,23.776884,166.78,166.64,47.61270754]
[1729601428377,6.0183,166.79,166.67,20.0]
[1729601428586,6.0183,166.79,166.62,70.0]
[1729601428893,5.9993,166.69,166.58,70.0]
[1729601429077,5.9993,166.69,166.57,6.5449]
[1729601429281,5.9998,166.68,166.57,6.5449]
[1729601429788,23.776884,166.72,166.57,6.5449]
[1729601430099,23.776884,166.69,166.57,6.5449]
[1729601430394,29.776284,166.69,166.57,6.5449]
[1729601430788,6.0005,166.66,166.55,16.3863]
[1729601430986,23.776884,166.65,166.53,15.71640871]
[1729601431198,29.779084,166.61,166.53,6.2442]
[1729601432593,29.779084,166.61,166.48,6.26863632]
[1729601432594,6.0039,166.56,166.48,6.26863632]
[1729601432892,29.780584,166.57,166.47,6.1984]
[1729601433115,23.776884,166.57,166.47,6.1984]
[1729601434777,23.776884,166.57,166.48,20.0]
[1729601436791,6.3353,166.61,166.48,20.0]
[1729601437094,23.776884,166.6,166.48,20.0]
[1729601438097,12.1406,166.65,166.51,20.0]
[1729601438275,12.1406,166.65,166.49,27.61270754]
[1729601438276,6.14,166.65,166.53,20.0]
[1729601438772,6.0015,166.63,166.51,20.0]
[1729601438972,6.14,166.65,166.51,20.0]
[1729601439224,6.0021,166.61,166.5,20.0]
[1729601439591,6.0017,166.62,166.5,20.0]
[1729601439783,23.776884,166.61,166.5,20.0]
[1729601440385,29.778984,166.61,166.5,20.0]
[1729601440703,23.776884,166.61,166.5,20.0]
[1729601441404,6.14,166.65,166.53,20.0]
[1729601441714,6.0009,166.64,166.53,20.0]
[1729601441908,6.14,166.65,166.53,20.0]
[1729601444488,6.0025,166.6,166.5,20.0]
[1729601444693,23.776884,166.64,166.49,27.61270754]
[1729601444885,6.0024,166.6,166.49,27.61270754]
[1729601445388,23.776884,166.59,166.49,27.61270754]
[1729601446003,23.776884,166.6,166.5,20.0]
[1729601448508,21.142,166.65,166.5,20.0]
[1729601448509,6.0012,166.64,166.5,90.0]
[1729601448717,6.001,166.64,166.5,90.0]
[1729601448886,6.14,166.65,166.5,90.0]
[1729601449710,6.0011,166.64,166.5,90.0]
[1729601450186,23.776884,166.64,166.53,20.0]
[1729601450385,23.776884,166.64,166.53,47.61270754]
[1729601450891,29.777884,166.64,166.53,47.61270754]
[1729601451208,23.776884,166.64,166.53,47.61270754]
[1729601451408,15.518,166.67,166.55,20.0]
[1729601451602,15.518,166.67,166.57,20.0]
[1729601452106,21.5178,166.67,166.57,20.0]
[1729601453609,15.518,166.67,166.57,20.0]
[1729601453905,6.0012,166.64,166.53,27.61270754]
[1729601454087,6.0012,166.64,166.52,6.1641]
[1729601454287,23.776884,166.64,166.52,76.1641]
[1729601454684,6.0016,166.63,166.52,6.1641]
[1729601455192,6.0016,166.63,166.53,20.0]
[1729601455508,6.0016,166.63,166.52,6.1641]
[1729601456803,6.0019,166.62,166.53,20.0]
[1729601458016,23.776884,166.64,166.53,20.0]
[1729601458311,6.0013,166.63,166.53,20.0]
[1729601458511,6.001,166.64,166.53,20.0]
[1729601458701,23.776884,166.63,166.53,20.0]
[1729601459492,23.776884,166.64,166.53,20.0]